bitfinex-derivatives/quotes_ETHF0:USTF0_20230701
["timestamp","ask_amount","ask_price","bid_price","bid_amount"]
[1688204178448,14.35243342,1920.2,1920.1,0.31694536]
[1688204178635,14.91991754,1920.2,1920.1,0.31694536]
[1688204178944,14.91991754,1920.2,1920.0,0.78145]
[1688204179345,14.91991754,1920.2,1920.1,0.00419746]
[1688204180643,14.91991754,1920.2,1920.1,0.31673746]
[1688204181045,14.91991754,1920.2,1920.1,0.38434801]
[1688204181249,14.91991754,1920.2,1920.1,0.38015055]
[1688204181448,14.91991754,1920.2,1920.1,0.38434801]
[1688204181647,14.91991754,1920.2,1920.1,0.25234801]
[1688204182150,14.91991754,1920.2,1920.1,0.00419746]
[1688204182352,14.91991754,1920.2,1920.1,0.31255]
[1688204182544,14.91991754,1920.2,1920.1,0.31658602]
[1688204182746,14.91991754,1920.2,1920.1,0.31656602]
[1688204183045,14.91991754,1920.2,1920.1,0.31253]
[1688204183246,14.91991754,1920.2,1920.0,0.78145]
[1688204183559,4.691,1920.1,1920.0,0.78145]
[1688204183751,5.00353,1920.1,1920.0,0.78145]
[1688204183948,5.94173112,1920.1,1920.0,0.78145]
[1688204184455,5.94173112,1920.1,1920.0,0.78517821]
[1688204191554,5.94173112,1920.1,1920.0,1.07189456]
[1688204192656,5.94173112,1920.1,1920.0,0.78517821]
[1688204195159,5.94173112,1920.1,1920.0,1.07189456]
[1688204196450,6.36386919,1920.1,1920.0,0.78517821]
[1688204205258,6.36386919,1920.1,1920.0,0.85580921]
[1688204207558,7.61476838,1920.1,1920.0,0.85580921]
[1688204219667,7.61476838,1920.1,1920.0,1.14252556]
[1688204219865,6.36386919,1920.1,1920.0,1.14252556]
[1688204220066,1.67286919,1920.1,1920.0,1.14252556]
[1688204224683,1.36033919,1920.1,1920.0,1.24652556]
[1688204224875,1.67287919,1920.1,1920.0,1.24652556]
[1688204226584,0.73467807,1920.1,1920.0,1.24652556]
[1688204228189,0.73467807,1920.1,1920.0,0.95980921]
[1688204228888,1.67287919,1920.1,1920.0,0.95980921]
[1688204230490,1.67287919,1920.1,1920.0,0.85580921]
[1688204231796,1.67287919,1920.1,1920.0,1.14252556]
[1688204233391,1.67287919,1920.1,1920.0,0.85580921]
[1688204233888,1.67287919,1920.1,1920.0,0.95980921]
[1688204234086,0.42213807,1920.1,1920.0,5.93052556]
[1688204234491,0.31254,1920.1,1920.0,5.93052556]
[1688204234894,5.7929623,1920.2,1920.0,5.93052556]
[1688204235294,6.36044642,1920.2,1920.0,5.93052556]
[1688204235690,9.56824642,1920.2,1920.0,5.82652556]
[1688204236091,9.97909367,1920.2,1920.0,5.82652556]
[1688204237991,10.91729479,1920.2,1920.0,5.82652556]
[1688204238388,5.91349479,1920.2,1920.1,0.104]
[1688204238590,0.41865955,1920.2,1920.1,0.4862803]
[1688204239491,0.41865955,1920.2,1920.1,0.48985925]
[1688204241893,0.73117955,1920.2,1920.1,0.38585925]
[1688204242199,3.93897955,1920.2,1920.1,0.38585925]
[1688204242595,4.87718067,1920.2,1920.1,0.38585925]
[1688204244403,4.87718067,1920.2,1920.1,0.6725756]
[1688204244704,4.87718067,1920.2,1920.1,0.38585925]
[1688204249003,4.87718067,1920.2,1920.1,0.6725756]
[1688204249601,45.67718067,1920.2,1920.1,0.38585925]
[1688204249802,46.92807986,1920.2,1920.1,0.38585925]
[1688204250806,51.61907986,1920.2,1920.1,0.07331925]
[1688204251203,51.61907986,1920.2,1920.0,0.78137]
[1688204251508,7.76012443,1920.1,1920.0,0.78137]
[1688204252705,2.50164031,1920.1,1920.0,5.75208635]
[1688204252909,0.31254,1920.1,1920.0,5.75208635]
[1688204254402,5.45044,1920.1,1920.0,5.75208635]
[1688204256515,2.70569479,1920.2,1920.0,5.73708635]
[1688204256706,5.27844,1920.1,1920.0,5.73708635]
[1688204259504,5.27844,1920.1,1920.0,5.74053652]
[1688204261008,5.91349479,1920.2,1920.0,5.74053652]
[1688204261009,1.35686067,1920.2,1920.0,5.84453652]
[1688204261215,0.41865955,1920.2,1920.1,0.56738785]
[1688204261413,0.41865955,1920.2,1920.1,0.88336915]
[1688204262110,0.41865955,1920.2,1920.1,5.57436915]
[1688204263417,0.41865955,1920.2,1920.1,5.67836915]
[1688204268423,0.41865955,1920.2,1920.1,5.57436915]
[1688204276335,0.73117955,1920.2,1920.1,5.57436915]
[1688204277032,0.73117955,1920.2,1920.1,5.0069813]
[1688204279733,0.41865955,1920.2,1920.1,5.0069813]
[1688204279930,0.73117955,1920.2,1920.1,5.0069813]
[1688204280137,0.41865955,1920.2,1920.1,5.0069813]
[1688204282740,0.73117955,1920.2,1920.1,5.0069813]
[1688204283743,0.41865955,1920.2,1920.1,5.0069813]
[1688204284742,0.73117955,1920.2,1920.1,5.0069813]
[1688204294960,0.73117955,1920.2,1920.1,4.9849813]
[1688204298756,0.41865955,1920.2,1920.1,4.9849813]
[1688204300461,0.73117955,1920.2,1920.1,4.9849813]
[1688204301466,0.41865955,1920.2,1920.1,4.9849813]
[1688204302068,0.41865955,1920.2,1920.1,5.0069813]
[1688204303869,0.73117955,1920.2,1920.1,5.0069813]
[1688204304773,0.41865955,1920.2,1920.1,5.0069813]
[1688204306969,0.73117955,1920.2,1920.1,5.0069813]
[1688204310472,0.73117955,1920.2,1920.1,0.3159813]
[1688204310669,1.66938067,1920.2,1920.1,0.3159813]
[1688204312175,1.66938067,1920.2,1920.1,4.9999813]
[1688204312368,3.93897955,1920.2,1920.1,4.9999813]
[1688204312570,4.87718067,1920.2,1920.1,4.9999813]
[1688204313577,9.56818067,1920.2,1920.1,0.0034413]
[1688204313776,9.56818067,1920.2,1920.0,0.78137]
[1688204313979,9.56818067,1920.2,1920.1,0.31254]
[1688204314382,10.13566479,1920.2,1920.1,0.31558634]
[1688204317884,5.13214479,1920.2,1920.1,0.60230269]
[1688204318186,10.13566479,1920.2,1920.1,0.60230269]
[1688204318382,10.13566479,1920.2,1920.1,0.31558634]
[1688204322191,1.35686067,1920.2,1920.1,5.28630269]
[1688204322495,0.41865955,1920.2,1920.1,5.28630269]
[1688204327394,0.73117955,1920.2,1920.1,5.28630269]
[1688204327594,0.73117955,1920.2,1920.1,4.99958634]
[1688204328088,0.73117955,1920.2,1920.1,5.28630269]
[1688204328799,0.41865955,1920.2,1920.1,5.28630269]
[1688204328987,0.73117955,1920.2,1920.1,5.28630269]
[1688204329387,0.41865955,1920.2,1920.1,5.28630269]
[1688204334300,0.73117955,1920.2,1920.1,5.28630269]
[1688204334693,0.41865955,1920.2,1920.1,5.28630269]
[1688204334899,0.73117955,1920.2,1920.1,5.28630269]
[1688204335696,0.41865955,1920.2,1920.1,5.28630269]
[1688204342097,0.41865955,1920.2,1920.1,5.29330269]
[1688204343999,0.41865955,1920.2,1920.1,5.70077919]
[1688204345200,0.41865955,1920.2,1920.1,0.72306284]
[1688204345503,13.32097955,1920.2,1919.9,0.31257]
[1688204345701,7.8988,1920.0,1919.9,0.31257]
[1688204345897,8.21135,1920.0,1919.9,0.31257]
[1688204346399,8.21135,1920.0,1919.9,0.31665742]
[1688204346699,13.25225,1920.0,1919.9,0.31665742]
[1688204347003,15.44135031,1920.0,1919.9,0.31665742]
[1688204347400,15.44135031,1920.0,1919.9,0.31257]
[1688204347592,9.14955112,1920.0,1919.9,0.31257]
[1688204347792,1.34887412,1920.1,1919.9,5.28328635]
[1688204347793,0.93820112,1920.1,1919.9,5.28328635]
[1688204347998,11.87010067,1920.2,1919.9,5.28328635]
[1688204348396,12.43758479,1920.2,1920.0,0.0040746]
[1688204348592,12.43758479,1920.2,1920.1,0.31254]
[1688204349507,12.42058479,1920.2,1920.1,0.31660179]
[1688204356807,12.42058479,1920.2,1920.1,0.00406179]
[1688204359713,12.42058479,1920.2,1920.1,0.31660179]
[1688204362511,12.42058479,1920.2,1920.1,0.00406179]
[1688204363309,53.22058479,1920.2,1920.1,0.00406179]
[1688204363508,54.47148398,1920.2,1920.1,0.00406179]
[1688204364213,54.47148398,1920.2,1920.0,0.31256]
[1688204364414,10.07090031,1920.1,1920.0,0.31256]
[1688204364616,10.38344031,1920.1,1920.0,0.31256]
[1688204372434,10.38344031,1920.1,1920.0,0.31689007]
[1688204378532,9.13254112,1920.1,1920.0,0.31689007]
[1688204378932,49.93254112,1920.1,1920.0,0.31689007]
[1688204379129,51.18344031,1920.1,1920.0,0.31689007]
[1688204380335,51.18344031,1920.1,1920.0,0.00433007]
[1688204380537,51.18344031,1920.1,1920.0,0.31689007]
[1688204388640,10.38344031,1920.1,1920.0,0.31689007]
[1688204388945,9.13254112,1920.1,1920.0,0.31689007]
[1688204389141,49.93254112,1920.1,1920.0,0.31689007]
[1688204389445,51.18344031,1920.1,1920.0,0.31689007]
[1688204405860,51.30464207,1920.1,1920.0,0.31689007]
[1688204406757,51.30464207,1920.1,1920.0,0.00433007]
[1688204406957,51.30464207,1920.1,1919.8,4.8829127]
[1688204407254,8.21137,1919.9,1919.8,4.8829127]
[1688204407450,9.14957112,1919.9,1919.8,5.1955027]
[1688204411759,9.14957112,1919.9,1919.8,0.3204027]
[1688204411960,9.14957112,1919.9,1919.8,0.0078127]
[1688204413659,9.14957112,1919.9,1919.8,0.3204027]
[1688204419062,9.14957112,1919.9,1919.8,0.0078127]
[1688204419367,9.14957112,1919.9,1919.8,0.3204027]
[1688204420662,9.55853085,1919.9,1919.8,0.3204027]
[1688204426968,0.56748412,1919.8,1919.6,5.16861]
[1688204427173,7.8818,1919.7,1919.6,5.16861]
[1688204427475,8.19441,1919.7,1919.6,5.16861]
[1688204427673,8.19441,1919.7,1918.5,3.09122097]
[1688204427674,5.0,1919.4,1918.5,3.09122097]
[1688204427873,5.0,1919.4,1918.4,0.78198]
[1688204427874,4.691,1918.5,1918.4,0.78198]
[1688204428064,9.65081,1918.5,1918.4,0.45673126]
[1688204428270,5.52729412,1918.5,1918.4,0.56073126]
[1688204428468,5.52729412,1918.5,1918.4,0.41682]
[1688204428672,5.52729412,1918.5,1918.4,0.76954842]
[1688204428968,5.52729412,1918.5,1918.4,0.45672842]
[1688204429175,5.52729412,1918.5,1918.3,0.78988881]
[1688204429176,5.52729412,1918.5,1918.3,0.00781881]
[1688204429375,5.52729412,1918.5,1918.4,0.45672414]
[1688204429675,46.32729412,1918.5,1918.3,0.00781881]
[1688204429878,5.52729412,1918.5,1918.4,0.45672093]
[1688204430075,5.52729412,1918.5,1918.4,0.31282]
[1688204430468,5.52729412,1918.5,1918.4,0.76953855]
[1688204431466,5.94811855,1918.5,1918.4,0.76953855]
[1688204432481,5.94811855,1918.5,1918.4,0.77365426]
[1688204433176,5.94811855,1918.5,1918.4,0.46083426]
[1688204435178,5.94811855,1918.5,1918.4,0.77365426]
[1688204437078,5.94811855,1918.5,1918.4,0.94625441]
[1688204438879,5.38063443,1918.5,1918.4,1.23297076]
[1688204440384,10.07163443,1918.5,1918.4,0.63343441]
[1688204440577,15.13323443,1918.5,1918.4,0.63343441]
[1688204440781,55.93323443,1918.5,1918.4,0.63343441]
[1688204442181,51.28623443,1918.5,1918.4,0.63343441]
[1688204450781,51.28623443,1918.5,1918.4,0.92015076]
[1688204451780,51.28623443,1918.5,1918.4,0.94624441]
[1688204453675,51.28623443,1918.5,1918.4,0.63343441]
[1688204453877,51.28623443,1918.5,1918.4,0.94624441]
[1688204455591,51.28623443,1918.5,1918.4,0.63343441]
[1688204456483,10.48623443,1918.5,1918.4,0.63343441]
[1688204457091,51.28623443,1918.5,1918.4,0.63343441]
[1688204457696,55.97723443,1918.5,1918.4,0.63343441]
[1688204458693,0.56748412,1918.4,1917.8,3.93217525]
[1688204458889,4.691,1917.9,1917.8,9.02907525]
[1688204459090,5.00389,1917.9,1917.8,9.3157916]
[1688204459482,5.00389,1917.9,1917.8,9.31952738]
[1688204460285,5.00389,1917.9,1917.8,9.70866389]
[1688204460489,5.00389,1917.9,1917.8,9.42194754]
[1688204461891,5.00389,1917.9,1917.8,9.70866389]
[1688204462291,5.00389,1917.9,1917.8,9.42194754]
[1688204462693,5.00389,1917.9,1917.8,9.70866389]
[1688204463894,5.00389,1917.9,1917.8,9.29718864]
[1688204464901,5.00389,1917.9,1917.8,0.70577229]
[1688204465295,5.00389,1917.9,1917.8,0.99248864]
[1688204467398,5.00389,1917.9,1917.8,0.70577229]
[1688204468496,9.69489,1917.9,1917.8,0.39287229]
[1688204468896,9.69489,1917.9,1917.8,0.99249864]
[1688204469093,5.00389,1917.9,1917.8,0.99249864]
[1688204471396,9.65089,1917.9,1917.8,0.99249864]
[1688204471696,9.65089,1917.9,1917.8,0.70578229]
[1688204472500,9.65089,1917.9,1917.8,0.70204651]
[1688204473402,9.65089,1917.9,1917.8,0.38913651]
[1688204473704,9.65089,1917.9,1917.8,0.39298931]
[1688204474909,10.59005347,1917.9,1917.8,0.39298931]
[1688204475404,9.65089,1917.9,1917.8,0.39298931]
[1688204476012,10.07791304,1917.9,1917.8,0.39298931]
[1688204480010,0.56748412,1917.8,1917.5,5.2633]
[1688204480311,7.8988,1917.6,1917.5,5.2633]
[1688204480514,8.77922412,1917.6,1917.4,0.31297]
[1688204480710,4.674,1917.5,1917.4,0.31297]
[1688204481011,4.98696,1917.5,1917.4,0.31297]
[1688204481605,4.98696,1917.5,1917.4,0.31671246]
[1688204483813,4.98696,1917.5,1917.4,0.60342881]
[1688204485103,4.674,1917.5,1917.4,0.60342881]
[1688204485403,4.674,1917.7,1917.4,8.50222881]
[1688204485810,4.98693,1917.7,1917.6,0.31294]
[1688204486010,4.674,1917.7,1917.6,0.59965635]
[1688204486517,4.98692,1917.7,1917.6,3.81118842]
[1688204487609,4.98692,1917.7,1917.6,4.14098024]
[1688204488013,6.16273304,1917.9,1917.6,8.83198024]
[1688204488014,10.38432304,1917.9,1917.6,8.83198024]
[1688204488411,10.38432304,1917.9,1917.8,3.52071]
[1688204488607,10.38432304,1917.9,1917.8,3.80742635]
[1688204488807,10.38432304,1917.9,1917.8,4.13721285]
[1688204491727,10.07142304,1917.9,1917.8,4.13721285]
[1688204492124,10.38431304,1917.9,1917.8,4.13721285]
[1688204496528,5.69331304,1917.9,1917.8,4.14078784]
[1688204500331,5.38042304,1917.9,1917.8,4.14078784]
[1688204500536,5.69331304,1917.9,1917.8,4.14078784]
[1688204501839,5.38042304,1917.9,1917.8,4.14078784]
[1688204502733,0.42702304,1917.9,1917.8,4.14078784]
[1688204503037,4.69882126,1918.0,1917.8,4.14078784]
[1688204503331,4.69882126,1918.0,1917.9,0.56738785]
[1688204503537,4.69882126,1918.0,1917.9,0.88027785]
[1688204503730,4.69882126,1918.0,1917.9,1.20999609]
[1688204505035,5.01169126,1918.0,1917.9,1.20999609]
[1688204505237,4.69882126,1918.0,1917.9,1.20999609]
[1688204505535,5.12564336,1918.0,1917.9,1.20999609]
[1688204509942,0.43464336,1918.0,1917.9,5.87899609]
[1688204511445,0.43464336,1918.0,1917.9,5.88230441]
[1688204512538,0.43464336,1918.0,1917.9,6.29249814]
[1688204515241,0.43464336,1918.0,1917.9,6.31449814]
[1688204517647,0.74751336,1918.0,1917.9,1.62349814]
[1688204517844,0.74751336,1918.0,1917.9,0.64591656]
[1688204519249,0.43464336,1918.0,1917.9,0.64591656]
[1688204521347,0.74751336,1918.0,1917.9,0.64591656]
[1688204521653,0.74752336,1918.0,1917.9,0.64591656]
[1688204522757,0.43464336,1918.0,1917.9,0.64591656]
[1688204525448,0.00782126,1918.0,1917.9,5.10856336]
[1688204525649,5.1613,1918.4,1917.9,22.75020468]
[1688204525947,0.9389087,1918.6,1918.4,0.31282]
[1688204526146,0.9389087,1918.6,1918.5,3.80731635]
[1688204526147,5.1613,1918.6,1918.5,3.80731635]
[1688204526545,5.1613,1918.6,1918.5,3.8105708]
[1688204528257,5.47411,1918.6,1918.5,3.8105708]
[1688204528450,6.41286509,1918.6,1918.5,3.8105708]
[1688204529955,6.41286509,1918.6,1918.5,0.6027708]
[1688204530254,11.08686509,1918.6,1918.5,0.31605445]
[1688204531260,11.08686509,1918.6,1918.5,0.6027708]
[1688204532258,11.10386509,1918.6,1918.5,0.6027708]
[1688204534356,11.10386509,1918.6,1918.5,0.31605445]
[1688204539463,11.10386509,1918.6,1918.5,0.6027708]
[1688204540169,11.10387509,1918.6,1918.5,0.6027708]
[1688204540370,11.10387509,1918.6,1918.5,0.31605445]
[1688204541355,6.41287509,1918.6,1918.5,0.31605445]
[1688204541562,11.10387509,1918.6,1918.5,0.31605445]
[1688204548172,11.52208277,1918.6,1918.5,0.31605445]
[1688204548871,11.52208277,1918.6,1918.5,5.445e-05]
[1688204549069,11.52208277,1918.6,1918.5,0.31285445]
[1688204549276,11.52208277,1918.6,1918.4,0.78986175]
[1688204549578,6.83108277,1918.6,1918.5,0.31580856]
[1688204549773,13.79112768,1918.6,1918.5,0.31580856]
[1688204549967,14.72988277,1918.6,1918.5,0.31580856]
[1688204550172,15.29736689,1918.6,1918.5,0.31580856]
[1688204571186,15.29736689,1918.6,1918.5,0.60252491]
[1688204571990,15.29736689,1918.6,1918.5,0.31580856]
[1688204594705,56.09736689,1918.6,1918.5,0.31580856]
[1688204595004,59.02316871,1918.6,1918.5,0.31580856]
[1688204598007,64.02316871,1918.6,1918.4,0.00781175]
[1688204598307,8.55555691,1918.5,1918.3,0.78206]
[1688204598505,8.76212412,1918.4,1918.3,0.78206]
[1688204598701,13.87032412,1918.4,1918.3,0.78206]
[1688204598905,14.80907921,1918.4,1918.3,0.78206]
[1688204605714,14.80907921,1918.4,1918.3,0.88300239]
[1688204606608,14.80907921,1918.4,1918.3,0.88720026]
[1688204609614,14.80907921,1918.4,1918.3,0.10514026]
[1688204610815,15.22751724,1918.4,1918.3,0.10514026]
[1688204615827,15.22751724,1918.4,1918.3,0.13905078]
[1688204616026,15.22751724,1918.4,1918.3,0.00419787]
[1688204616219,15.22751724,1918.4,1918.3,0.15725812]
[1688204631637,15.22751724,1918.4,1918.3,0.15306025]
[1688204632042,15.22751724,1918.4,1918.2,0.31287]
[1688204632236,10.55351724,1918.4,1918.3,0.1531422]
[1688204632539,15.24451724,1918.4,1918.3,0.1531422]
[1688204641047,22.76302649,1918.4,1918.3,0.1531422]
[1688204647652,15.24451724,1918.4,1918.3,0.1531422]
[1688204648249,15.24451724,1918.4,1918.1,5.48199]
[1688204648552,8.21168,1918.2,1918.1,5.48199]
[1688204650149,8.77916412,1918.2,1918.1,5.48199]
[1688204652557,8.21168,1918.2,1918.1,5.76870635]
[1688204655456,8.21168,1918.2,1918.1,5.92173018]
[1688204655858,5.00388,1918.2,1918.1,5.92173018]
[1688204657065,5.00388,1918.2,1918.1,6.02573018]
[1688204658754,5.00388,1918.2,1918.1,5.92173018]
[1688204658957,4.691,1918.2,1918.1,6.02573018]
[1688204659964,4.691,1918.2,1918.1,5.92173018]
[1688204660457,5.10676645,1918.2,1918.1,5.92173018]
[1688204668260,5.41964645,1918.2,1918.1,5.92173018]
[1688204668765,5.41964645,1918.2,1918.1,6.02573018]
[1688204669758,5.41964645,1918.2,1918.1,5.92173018]
[1688204671567,5.41964645,1918.2,1918.1,6.02573018]
[1688204672071,0.72864645,1918.2,1918.1,6.02573018]
[1688204673260,0.72864645,1918.2,1918.1,5.92173018]
[1688204674068,0.72864645,1918.2,1918.1,6.02573018]
[1688204675860,0.72864645,1918.2,1918.1,5.92173018]
[1688204676672,5.77264645,1918.2,1918.1,5.92173018]
[1688204681071,6.71140154,1918.2,1918.1,5.92173018]
[1688204682073,11.40240154,1918.2,1918.1,5.92173018]
[1688204690169,11.40240154,1918.2,1918.1,0.46591383]
[1688204695180,11.40240154,1918.2,1918.1,0.75263018]
[1688204696686,11.40240154,1918.2,1918.1,0.46591383]
[1688204697573,11.40240154,1918.2,1918.1,0.75263018]
[1688204699177,11.08952154,1918.2,1918.1,0.75263018]
[1688204699486,10.15076645,1918.2,1918.1,0.75263018]
[1688204702078,5.45976645,1918.2,1918.1,5.43663018]
[1688204705986,0.93875509,1918.3,1918.1,8.62943018]
[1688204706286,5.63757349,1918.7,1918.3,0.104]
[1688204706478,5.63757349,1918.7,1918.4,5.00384]
[1688204706479,9.5664184,1918.7,1918.4,5.00384]
[1688204706679,9.5664184,1918.7,1918.5,0.28671635]
[1688204706886,9.5664184,1918.7,1918.6,0.31281]
[1688204708083,9.97331833,1918.7,1918.6,0.31281]
[1688204712284,10.28610833,1918.7,1918.6,0.31281]
[1688204723690,10.26910833,1918.7,1918.5,0.78203]
[1688204723994,10.26910833,1918.7,1918.4,0.93844]
[1688204723995,8.76211412,1918.6,1918.4,0.93844]
[1688204724199,4.08811412,1918.6,1918.5,0.31282]
[1688204724496,8.76211412,1918.6,1918.5,0.31282]
[1688204725897,9.70086921,1918.6,1918.5,0.31282]
[1688204726291,8.76211412,1918.6,1918.5,0.31282]
[1688204726491,9.70086921,1918.6,1918.5,0.31282]
[1688204726698,8.76211412,1918.6,1918.5,0.31282]
[1688204726897,9.70086921,1918.6,1918.5,0.31282]
[1688204727094,8.76211412,1918.6,1918.5,0.31282]
[1688204727900,8.76211412,1918.6,1918.4,0.93844]
[1688204728204,4.691,1918.5,1918.4,0.93844]
[1688204728401,5.00383,1918.5,1918.4,0.93844]
[1688204729001,5.00383,1918.5,1918.3,0.78208]
[1688204729002,5.00383,1918.5,1918.0,1.46620174]
[1688204729205,7.8988,1918.2,1918.0,1.04304]
[1688204729407,0.31289,1918.1,1918.0,1.04304]
[1688204729893,0.31289,1918.1,1918.0,1.32975635]
[1688204730298,0.31289,1918.1,1918.0,1.23166725]
[1688204730895,0.31289,1918.1,1918.0,1.5183836]
[1688204732202,5.00389,1918.1,1918.0,1.5183836]
[1688204732406,10.14809,1918.1,1918.0,1.23166725]
[1688204732705,11.08684509,1918.1,1918.0,1.23551765]
[1688204734398,11.08684509,1918.1,1918.0,1.522234]
[1688204735301,11.08684509,1918.1,1918.0,1.23551765]
[1688204736002,11.08684509,1918.1,1918.0,1.522234]
[1688204736204,11.08684509,1918.1,1918.0,1.23551765]
[1688204739507,11.08684509,1918.1,1918.0,0.50538765]
[1688204740305,11.50108848,1918.1,1918.0,0.50538765]
[1688204742811,11.50108848,1918.1,1918.0,0.792104]
[1688204743019,11.50108848,1918.1,1918.0,0.50538765]
[1688204771238,11.50108848,1918.1,1918.0,0.2516784]
[1688204772345,14.4268903,1918.1,1918.0,0.2516784]
[1688204773841,23.0858903,1918.1,1918.0,0.2516784]
[1688204774436,23.0858903,1918.1,1918.0,7.84e-05]
[1688204774741,23.0858903,1918.1,1918.0,0.00372131]
[1688204775532,23.0858903,1918.1,1918.0,0.22767805]
[1688204775731,23.0858903,1918.1,1918.0,0.22395674]
[1688204776137,0.31292,1917.9,1917.7,0.31293]
[1688204776336,8.77922412,1917.8,1917.7,0.31293]
[1688204776546,8.77922412,1917.8,1917.6,0.78237]
[1688204776841,5.00396,1917.7,1917.6,0.78237]
[1688204777638,5.00396,1917.7,1917.5,5.98537]
[1688204777843,8.46628412,1917.6,1917.5,5.98537]
[1688204778042,8.77925412,1917.6,1917.5,5.98537]
[1688204779248,13.59455412,1917.6,1917.5,5.98537]
[1688204779444,13.59455412,1917.6,1917.5,0.93887]
[1688204780048,13.59455412,1917.6,1917.5,1.21700494]
[1688204780347,13.59455412,1917.6,1917.5,0.27813494]
[1688204780544,13.59455412,1917.6,1917.4,0.31299]
[1688204780750,5.00399,1917.5,1917.4,0.31299]
[1688204780942,5.94274509,1917.5,1917.4,0.31299]
[1688204781743,5.94274509,1917.5,1917.4,0.31648627]
[1688204790248,5.94274509,1917.5,1917.4,0.51374402]
[1688204795065,6.36851984,1917.5,1917.4,0.51374402]
[1688204800565,7.89552457,1917.5,1917.4,0.51374402]
[1688204807368,7.89552457,1917.5,1917.4,0.20075402]
[1688204808278,12.57652457,1917.5,1917.4,0.19717899]
[1688204808467,12.57652457,1917.5,1917.3,0.78246]
[1688204808668,54.31498412,1917.4,1917.3,0.78246]
[1688204808968,54.31498412,1917.4,1917.2,0.93899]
[1688204808969,4.691,1917.3,1917.2,0.93899]
[1688204809271,10.63377509,1917.3,1917.2,0.93899]
[1688204815876,10.63377509,1917.3,1917.2,1.08682183]
[1688204816579,17.60299926,1917.3,1917.2,1.09032349]
[1688204816779,5.62975509,1917.3,1917.2,1.37703984]
[1688204817077,4.691,1917.3,1917.2,1.37703984]
[1688204817472,5.1161111,1917.3,1917.2,1.37703984]
[1688204819675,5.1161111,1917.3,1917.2,1.09032349]
[1688204819871,5.1161111,1917.3,1917.2,1.37703984]
[1688204822780,5.1161111,1917.3,1917.2,1.09032349]
[1688204823488,5.1161111,1917.3,1917.2,1.37703984]
[1688204828985,5.1161111,1917.3,1917.2,1.09032349]
[1688204829986,5.1161111,1917.3,1917.2,1.37703984]
[1688204830190,4.674,1917.4,1917.2,9.25383984]
[1688204830391,4.674,1917.4,1917.3,0.56738785]
[1688204830691,4.674,1917.4,1917.3,1.0345966]
[1688204834091,4.674,1917.4,1917.3,0.46720875]
[1688204835688,4.987,1917.4,1917.3,0.46720875]
[1688204835892,5.92575509,1917.4,1917.3,0.46720875]
[1688204836090,4.987,1917.4,1917.3,0.46720875]
[1688204839091,1.25175509,1917.4,1917.3,0.46720875]
[1688204843195,0.313,1917.4,1917.3,0.46720875]
[1688204844199,0.313,1917.4,1917.3,0.7539251]
[1688204845804,1.84086449,1917.4,1917.3,0.7539251]
[1688204846207,0.313,1917.4,1917.3,0.7539251]
[1688204848014,5.004,1917.4,1917.3,0.7539251]
[1688204848810,5.004,1917.4,1917.3,0.79175439]
[1688204850115,5.004,1917.4,1917.3,0.50503804]
[1688204850615,5.004,1917.4,1917.3,0.79175439]
[1688204850616,4.691,1917.4,1917.3,0.79175439]
[1688204850815,4.691,1917.4,1917.3,0.60321417]
[1688204851410,5.004,1917.4,1917.3,0.60321417]
[1688204853414,5.004,1917.4,1917.3,0.31649782]
[1688204854817,5.004,1917.4,1917.3,0.50403128]
[1688204861126,13.663,1917.4,1917.2,0.93899]
[1688204861326,13.14028412,1917.3,1917.2,0.93899]
[1688204861629,19.39644921,1917.3,1917.2,0.94223923]
[1688204862427,19.39644921,1917.3,1917.2,1.08285733]
[1688204876530,19.81891113,1917.3,1917.2,1.08285733]
[1688204876733,21.39171218,1917.3,1917.2,1.08285733]
[1688204878241,21.39171218,1917.3,1917.2,1.36957368]
[1688204878633,21.39171218,1917.3,1917.2,1.08285733]
[1688204879735,21.39171218,1917.3,1917.2,1.0796081]
[1688204884042,21.07870218,1917.3,1917.2,1.36632445]
[1688204884237,13.93401701,1917.3,1917.2,1.36632445]
[1688204884435,10.72621701,1917.3,1917.2,1.36632445]
[1688204884641,9.78746192,1917.3,1917.2,1.36957368]
[1688204884844,10.72621701,1917.3,1917.2,1.36957368]
[1688204885442,9.78746192,1917.3,1917.2,1.36957368]
[1688204885634,10.72621701,1917.3,1917.2,1.36957368]
[1688204885838,9.78746192,1917.3,1917.2,1.36957368]
[1688204886043,10.72621701,1917.3,1917.2,1.36957368]
[1688204886843,9.78746192,1917.3,1917.2,1.36957368]
[1688204887039,10.72621701,1917.3,1917.2,1.36957368]
[1688204887236,9.78746192,1917.3,1917.2,1.36957368]
[1688204887437,10.72621701,1917.3,1917.2,1.36957368]
[1688204887643,9.78746192,1917.3,1917.2,1.36957368]
[1688204888151,10.72621701,1917.3,1917.2,1.36957368]
[1688204888951,9.78746192,1917.3,1917.2,1.36957368]
[1688204890341,10.72621701,1917.3,1917.2,1.36957368]
[1688204892054,6.03521701,1917.3,1917.2,1.36957368]
[1688204892245,5.09646192,1917.3,1917.2,1.36957368]
[1688204893154,5.40948192,1917.3,1917.2,1.36957368]
[1688204896253,5.09646192,1917.3,1917.2,1.36957368]
[1688204898355,5.40948192,1917.3,1917.2,1.36957368]
[1688204898853,5.09646192,1917.3,1917.2,1.36957368]
[1688204904451,4.674,1917.3,1917.2,1.36957368]
[1688204904852,4.674,1917.3,1917.2,4.57737368]
[1688204912057,4.691,1917.4,1917.2,4.57737368]
[1688204912258,4.691,1917.4,1917.3,0.56738785]
[1688204912458,4.691,1917.4,1917.3,0.88040785]
[1688204912758,4.691,1917.4,1917.3,1.02445655]
[1688204915068,9.4951,1917.4,1917.3,1.02445655]
[1688204921079,10.43385509,1917.4,1917.3,1.02445655]
[1688204922073,10.41685509,1917.4,1917.3,1.02445655]
[1688204925880,9.4781,1917.4,1917.3,1.02445655]
[1688204928584,9.4781,1917.4,1917.3,1.43542104]
[1688204930486,5.74285509,1917.4,1917.3,6.11942104]
[1688204930682,4.8041,1917.4,1917.3,6.11942104]
[1688204931387,4.674,1917.6,1917.3,6.11942104]
[1688204931588,9.6398,1917.6,1917.4,3.49451635]
[1688204931786,9.6398,1917.6,1917.5,0.45379363]
[1688204931984,9.6398,1917.6,1917.5,1.02118148]
[1688204932178,10.59555509,1917.6,1917.5,1.02118148]
[1688204932383,9.6568,1917.6,1917.5,1.02118148]
[1688204932686,9.6568,1917.6,1917.5,1.02431669]
[1688204932882,10.59555509,1917.6,1917.5,1.02431669]
[1688204933380,9.6568,1917.6,1917.5,1.02431669]
[1688204933787,10.59555509,1917.6,1917.5,1.02431669]
[1688204933990,9.6568,1917.6,1917.5,1.02431669]
[1688204934487,10.59555509,1917.6,1917.5,1.02431669]
[1688204934791,9.6568,1917.6,1917.5,1.02431669]
[1688204935187,10.59555509,1917.6,1917.5,1.02431669]